[Event "Titled Tuesday Blitz March 14 Late 2023"]
[White "Foerster-Yialamas, Lucas"]
[Black "Nazari, Arad"]
[WhiteFideId "30901774"]
[BlackFideId "12577324"]
[WhiteElo "2067"]
[BlackElo "2313"]
[Result "1/2-1/2"]
[Round "01"]
[TimeControl "180+1"]
[Date "2023.03.14"]
[WhiteClock "0:00:11"]
[BlackClock "0:00:10"]

1. e4 {[%clk 0:02:52]}  c5 {[%clk 0:02:44]} 2. Nf3 {[%clk 0:02:52]}  d6 {[%clk 0:02:43]} 3. d4 {[%clk 0:02:52]}  cxd4 {[%clk 0:02:44]} 4. Nxd4 {[%clk 0:02:51]}  Nf6 {[%clk 0:02:45]} 5. Nc3 {[%clk 0:02:51]}  a6 {[%clk 0:02:46]} 6. Bg5 {[%clk 0:02:51]}  Nbd7 {[%clk 0:02:45]} 7. f4 {[%clk 0:02:49]}  g6 {[%clk 0:02:38]} 8. Qf3 {[%clk 0:02:47]}  Bg7 {[%clk 0:02:32]} 9. O-O-O {[%clk 0:02:47]}  O-O {[%clk 0:02:31]} 10. Kb1 {[%clk 0:02:47]}  Qa5 {[%clk 0:02:04]} 11. g4 {[%clk 0:02:43]}  Nc5 {[%clk 0:01:35]} 12. Bxf6 {[%clk 0:02:35]}  Bxf6 {[%clk 0:01:35]} 13. h4 {[%clk 0:02:35]}  Ne6 {[%clk 0:01:14]} 14. Nxe6 {[%clk 0:02:33]}  Bxe6 {[%clk 0:01:15]} 15. f5 {[%clk 0:02:33]}  Bxc3 {[%clk 0:01:12]} 16. fxe6 {[%clk 0:02:29]}  Be5 {[%clk 0:01:11]} 17. Bc4 {[%clk 0:02:24]}  fxe6 {[%clk 0:01:09]} 18. Bxe6+ {[%clk 0:02:23]}  Kg7 {[%clk 0:01:09]} 19. Qe3 {[%clk 0:02:19]}  Rf6 {[%clk 0:00:57]} 20. Bb3 {[%clk 0:02:09]}  Raf8 {[%clk 0:00:53]} 21. h5 {[%clk 0:02:04]}  Bf4 {[%clk 0:00:52]} 22. Qd4 {[%clk 0:02:00]}  g5 {[%clk 0:00:41]} 23. c3 {[%clk 0:01:50]}  h6 {[%clk 0:00:39]} 24. Rhf1 {[%clk 0:01:43]}  Be5 {[%clk 0:00:25]} 25. Qd3 {[%clk 0:01:43]}  Qc5 {[%clk 0:00:25]} 26. Rf5 {[%clk 0:01:41]}  Rxf5 {[%clk 0:00:21]} 27. gxf5 {[%clk 0:01:35]}  b5 {[%clk 0:00:18]} 28. a3 {[%clk 0:01:32]}  a5 {[%clk 0:00:17]} 29. Qd5 {[%clk 0:01:27]}  Qxd5 {[%clk 0:00:17]} 30. Bxd5 {[%clk 0:01:28]}  Kf6 {[%clk 0:00:16]} 31. Rg1 {[%clk 0:01:25]}  Rb8 {[%clk 0:00:16]} 32. Kc2 {[%clk 0:01:24]}  Bf4 {[%clk 0:00:13]} 33. b3 {[%clk 0:01:22]}  Ke5 {[%clk 0:00:13]} 34. Kd3 {[%clk 0:01:22]}  Rc8 {[%clk 0:00:11]} 35. c4 {[%clk 0:01:13]}  b4 {[%clk 0:00:11]} 36. axb4 {[%clk 0:01:10]}  axb4 {[%clk 0:00:12]} 37. Ra1 {[%clk 0:01:11]}  g4 {[%clk 0:00:12]} 38. Ra4 {[%clk 0:01:05]}  g3 {[%clk 0:00:07]} 39. Ke2 {[%clk 0:01:01]}  Rb8 {[%clk 0:00:07]} 40. Kf3 {[%clk 0:01:00]}  Rb6 {[%clk 0:00:01]} 41. Be6 {[%clk 0:00:55]}  Bg5 {[%clk 0:00:02]} 42. Kxg3 {[%clk 0:00:53]}  Kxe4 {[%clk 0:00:02]} 43. Kg4 {[%clk 0:00:42]}  Kd4 {[%clk 0:00:03]} 44. Ra7 {[%clk 0:00:37]}  Kc3 {[%clk 0:00:03]} 45. Rc7 {[%clk 0:00:36]}  Ra6 {[%clk 0:00:02]} 46. c5 {[%clk 0:00:32]}  dxc5 {[%clk 0:00:02]} 47. Rxc5+ {[%clk 0:00:33]}  Kb2 {[%clk 0:00:03]} 48. Rc4 {[%clk 0:00:28]}  Ka3 {[%clk 0:00:03]} 49. Rd4 {[%clk 0:00:27]}  Rc6 {[%clk 0:00:03]} 50. Bc4 {[%clk 0:00:20]}  Rc5 {[%clk 0:00:03]} 51. Re4 {[%clk 0:00:20]}  Rc7 {[%clk 0:00:03]} 52. Re6 {[%clk 0:00:20]}  Rd7 {[%clk 0:00:04]} 53. Kf3 {[%clk 0:00:18]}  Kb2 {[%clk 0:00:04]} 54. Ke4 {[%clk 0:00:19]}  Rd1 {[%clk 0:00:04]} 55. Rb6 {[%clk 0:00:14]}  Kc3 {[%clk 0:00:04]} 56. Rc6 {[%clk 0:00:14]}  Re1+ {[%clk 0:00:04]} 57. Kd5 {[%clk 0:00:14]}  Kb2 {[%clk 0:00:03]} 58. Rb6 {[%clk 0:00:14]}  Kc3 {[%clk 0:00:04]} 59. Rc6 {[%clk 0:00:14]}  Kb2 {[%clk 0:00:03]} 60. Kc5 {[%clk 0:00:14]}  Bd2 {[%clk 0:00:02]} 61. Re6 {[%clk 0:00:14]}  Rxe6 {[%clk 0:00:02]} 62. Bxe6 {[%clk 0:00:13]}  Kc3 {[%clk 0:00:03]} 63. Kc6 {[%clk 0:00:12]}  Bg5 {[%clk 0:00:03]} 64. Kd7 {[%clk 0:00:12]}  Kd4 {[%clk 0:00:04]} 65. Bf7 {[%clk 0:00:11]}  Ke4 {[%clk 0:00:04]} 66. Bg6 {[%clk 0:00:11]}  Bf6 {[%clk 0:00:05]} 67. Ke6 {[%clk 0:00:11]}  Kd3 {[%clk 0:00:05]} 68. Kd7 {[%clk 0:00:09]}  Kd4 {[%clk 0:00:06]} 69. Bf7 {[%clk 0:00:09]}  Ke4 {[%clk 0:00:05]} 70. Bg6 {[%clk 0:00:10]}  Kf4 {[%clk 0:00:05]} 71. Ke8 {[%clk 0:00:10]}  Ke5 {[%clk 0:00:05]} 72. Kf8 {[%clk 0:00:10]}  Kd6 {[%clk 0:00:05]} 73. Kg8 {[%clk 0:00:10]}  Bg5 {[%clk 0:00:06]} 74. Kf7 {[%clk 0:00:10]}  Kc5 {[%clk 0:00:07]} 75. Kg7 {[%clk 0:00:10]}  Kd4 {[%clk 0:00:07]} 76. Bf7 {[%clk 0:00:10]}  Ke4 {[%clk 0:00:08]} 77. Be6 {[%clk 0:00:11]}  Kd3 {[%clk 0:00:08]} 78. Kg6 {[%clk 0:00:12]}  Kd4 {[%clk 0:00:08]} 79. Bf7 {[%clk 0:00:13]}  Ke5 {[%clk 0:00:08]} 80. Be6 {[%clk 0:00:13]}  Kf4 {[%clk 0:00:09]} 81. Bc4 {[%clk 0:00:14]}  Ke5 {[%clk 0:00:09]} 82. Be6 {[%clk 0:00:13]}  Kd6 {[%clk 0:00:09]} 83. Bc4 {[%clk 0:00:12]}  Kc7 {[%clk 0:00:10]} 84. Be6 {[%clk 0:00:13]}  Kd6 {[%clk 0:00:10]} 85. Bc4 {[%clk 0:00:13]}  Ke5 {[%clk 0:00:10]} 86. Be6 {[%clk 0:00:11]} 1/2-1/2


[Site "https://www.chess.com"]

[Event "Titled Tuesday Blitz March 14 Late 2023"]
[White "Galchenko, Matvey"]
[Black "Chan, Kim Yew"]
[WhiteFideId "24175480"]
[BlackFideId "5717981"]
[WhiteElo "2404"]
[BlackElo "2206"]
[Result "1-0"]
[Round "01"]
[TimeControl "180+1"]
[Date "2023.03.14"]
[WhiteClock "0:01:12"]
[BlackClock "0:00:01"]

1. f4 {[%clk 0:02:56]}  d5 {[%clk 0:02:46]} 2. Nf3 {[%clk 0:02:56]}  Nf6 {[%clk 0:02:41]} 3. g3 {[%clk 0:02:53]}  c5 {[%clk 0:02:40]} 4. Bg2 {[%clk 0:02:54]}  g6 {[%clk 0:02:41]} 5. O-O {[%clk 0:02:55]}  Bg7 {[%clk 0:02:41]} 6. d3 {[%clk 0:02:56]}  O-O {[%clk 0:02:41]} 7. Nc3 {[%clk 0:02:57]}  Nc6 {[%clk 0:02:42]} 8. e4 {[%clk 0:02:57]}  dxe4 {[%clk 0:02:42]} 9. dxe4 {[%clk 0:02:58]}  e5 {[%clk 0:02:40]} 10. Qxd8 {[%clk 0:02:57]}  Rxd8 {[%clk 0:02:41]} 11. Nxe5 {[%clk 0:02:58]}  Nxe5 {[%clk 0:02:40]} 12. fxe5 {[%clk 0:02:59]}  Ng4 {[%clk 0:02:38]} 13. Bg5 {[%clk 0:02:59]}  Rf8 {[%clk 0:01:58]} 14. Be7 {[%clk 0:02:49]}  Re8 {[%clk 0:01:51]} 15. Bxc5 {[%clk 0:02:49]}  Bxe5 {[%clk 0:01:45]} 16. Nd5 {[%clk 0:02:41]}  b6 {[%clk 0:01:45]} 17. Ba3 {[%clk 0:02:30]}  Bd4+ {[%clk 0:01:34]} 18. Kh1 {[%clk 0:02:31]}  Ba6 {[%clk 0:01:35]} 19. Rf4 {[%clk 0:02:27]}  h5 {[%clk 0:01:16]} 20. h3 {[%clk 0:02:22]}  Nf2+ {[%clk 0:01:16]} 21. Kh2 {[%clk 0:02:23]}  Kg7 {[%clk 0:01:15]} 22. c3 {[%clk 0:02:22]}  Be5 {[%clk 0:00:43]} 23. Rxf2 {[%clk 0:02:19]}  h4 {[%clk 0:00:44]} 24. Rf3 {[%clk 0:02:12]}  hxg3+ {[%clk 0:00:44]} 25. Kg1 {[%clk 0:02:12]}  Be2 {[%clk 0:00:44]} 26. Re3 {[%clk 0:02:11]}  Bc4 {[%clk 0:00:42]} 27. Rae1 {[%clk 0:01:58]}  Rad8 {[%clk 0:00:42]} 28. b3 {[%clk 0:01:57]}  Ba6 {[%clk 0:00:38]} 29. Be7 {[%clk 0:01:44]}  Rd7 {[%clk 0:00:36]} 30. Bh4 {[%clk 0:01:43]}  f5 {[%clk 0:00:12]} 31. Bxg3 {[%clk 0:01:38]}  Bxg3 {[%clk 0:00:07]} 32. Rxg3 {[%clk 0:01:39]}  Rxd5 {[%clk 0:00:06]} 33. c4 {[%clk 0:01:31]}  Rde5 {[%clk 0:00:07]} 34. Kf2 {[%clk 0:01:26]}  fxe4 {[%clk 0:00:06]} 35. Ke3 {[%clk 0:01:26]}  Bb7 {[%clk 0:00:06]} 36. Rd1 {[%clk 0:01:26]}  Rf8 {[%clk 0:00:06]} 37. Rd6 {[%clk 0:01:24]}  Rf6 {[%clk 0:00:05]} 38. Rd4 {[%clk 0:01:22]}  Ref5 {[%clk 0:00:03]} 39. Bxe4 {[%clk 0:01:19]}  Re5 {[%clk 0:00:03]} 40. Rd7+ {[%clk 0:01:15]}  Rf7 {[%clk 0:00:03]} 41. Rxg6+ {[%clk 0:01:15]}  Kf8 {[%clk 0:00:03]} 42. Rxf7+ {[%clk 0:01:11]}  Kxf7 {[%clk 0:00:04]} 43. Rg4 {[%clk 0:01:12]}  Kf6 {[%clk 0:00:04]} 44. Kd4 {[%clk 0:01:11]}  Bxe4 {[%clk 0:00:04]} 45. Rxe4 {[%clk 0:01:12]}  Rh5 {[%clk 0:00:04]} 46. h4 {[%clk 0:01:12]}  b5 {[%clk 0:00:03]} 47. c5 {[%clk 0:01:12]}  a5 {[%clk 0:00:02]} 48. c6 {[%clk 0:01:12]}  Rh8 {[%clk 0:00:01]} 49. Kc5 {[%clk 0:01:12]} 1-0


[Site "https://www.chess.com"]

[Event "Titled Tuesday Blitz March 14 Late 2023"]
[White "Golubev, Mikhail"]
[Black "Svane, Frederik"]
[WhiteFideId "14100983"]
[BlackFideId "12923044"]
[WhiteElo "2374"]
[BlackElo "2502"]
[Result "0-1"]
[Round "01"]
[TimeControl "180+1"]
[Date "2023.03.14"]
[WhiteClock "0:00:01"]
[BlackClock "0:00:22"]

1. e4 {[%clk 0:03:00]}  c5 {[%clk 0:02:59]} 2. Nf3 {[%clk 0:03:00]}  e6 {[%clk 0:02:59]} 3. d4 {[%clk 0:03:00]}  cxd4 {[%clk 0:02:58]} 4. Nxd4 {[%clk 0:03:01]}  Nc6 {[%clk 0:02:59]} 5. Nc3 {[%clk 0:03:00]}  a6 {[%clk 0:02:59]} 6. Be3 {[%clk 0:02:58]}  Nf6 {[%clk 0:02:58]} 7. Bd3 {[%clk 0:02:58]}  d5 {[%clk 0:02:54]} 8. exd5 {[%clk 0:02:56]}  Nxd5 {[%clk 0:02:52]} 9. Nxd5 {[%clk 0:02:51]}  Qxd5 {[%clk 0:02:51]} 10. O-O {[%clk 0:02:51]}  Nxd4 {[%clk 0:02:46]} 11. Bxd4 {[%clk 0:02:49]}  Bd7 {[%clk 0:02:46]} 12. Be2 {[%clk 0:02:42]}  Bc6 {[%clk 0:02:47]} 13. Bf3 {[%clk 0:02:41]}  Qd7 {[%clk 0:02:47]} 14. Bxc6 {[%clk 0:02:41]}  Qxc6 {[%clk 0:02:48]} 15. c3 {[%clk 0:02:18]}  Rd8 {[%clk 0:02:48]} 16. Qe2 {[%clk 0:02:09]}  Bc5 {[%clk 0:02:33]} 17. Bxc5 {[%clk 0:01:40]}  Qxc5 {[%clk 0:02:34]} 18. Rad1 {[%clk 0:01:38]}  O-O {[%clk 0:02:35]} 19. Rxd8 {[%clk 0:01:36]}  Rxd8 {[%clk 0:02:36]} 20. Rd1 {[%clk 0:01:36]}  Rd5 {[%clk 0:02:31]} 21. Qf3 {[%clk 0:01:27]}  Rxd1+ {[%clk 0:02:19]} 22. Qxd1 {[%clk 0:01:28]}  g5 {[%clk 0:02:18]} 23. h4 {[%clk 0:01:19]}  h6 {[%clk 0:02:16]} 24. hxg5 {[%clk 0:01:17]}  hxg5 {[%clk 0:02:17]} 25. Qf3 {[%clk 0:01:14]}  Qe7 {[%clk 0:02:06]} 26. Qg3 {[%clk 0:01:09]}  Kg7 {[%clk 0:02:05]} 27. f4 {[%clk 0:01:06]}  Qc5+ {[%clk 0:02:05]} 28. Kh2 {[%clk 0:01:03]}  Kg6 {[%clk 0:02:03]} 29. fxg5 {[%clk 0:00:55]}  Qxg5 {[%clk 0:02:01]} 30. Qd3+ {[%clk 0:00:52]}  Qf5 {[%clk 0:01:57]} 31. Qg3+ {[%clk 0:00:51]}  Kf6 {[%clk 0:01:52]} 32. Qh4+ {[%clk 0:00:50]}  Qg5 {[%clk 0:01:51]} 33. Qh8+ {[%clk 0:00:45]}  Ke7 {[%clk 0:01:50]} 34. Qb8 {[%clk 0:00:40]}  Qh4+ {[%clk 0:01:44]} 35. Kg1 {[%clk 0:00:40]}  Qe1+ {[%clk 0:01:44]} 36. Kh2 {[%clk 0:00:40]}  Qe4 {[%clk 0:01:45]} 37. b3 {[%clk 0:00:31]}  Kf6 {[%clk 0:01:44]} 38. Qd8+ {[%clk 0:00:25]}  Kf5 {[%clk 0:01:43]} 39. Qe7 {[%clk 0:00:20]}  Kg6 {[%clk 0:01:38]} 40. c4 {[%clk 0:00:17]}  Qf4+ {[%clk 0:01:30]} 41. Kh1 {[%clk 0:00:14]}  Qh6+ {[%clk 0:01:27]} 42. Kg1 {[%clk 0:00:14]}  Qe3+ {[%clk 0:01:28]} 43. Kh1 {[%clk 0:00:14]}  Qe1+ {[%clk 0:01:27]} 44. Kh2 {[%clk 0:00:14]}  Qe5+ {[%clk 0:01:28]} 45. Kh1 {[%clk 0:00:14]}  Qe4 {[%clk 0:01:21]} 46. Qd6 {[%clk 0:00:14]}  Kf5 {[%clk 0:01:19]} 47. Qe7 {[%clk 0:00:14]}  Kg6 {[%clk 0:01:08]} 48. Qd6 {[%clk 0:00:12]}  f5 {[%clk 0:01:08]} 49. Qd7 {[%clk 0:00:09]}  Kg5 {[%clk 0:01:08]} 50. Qg7+ {[%clk 0:00:08]}  Kf4 {[%clk 0:01:08]} 51. Qh6+ {[%clk 0:00:08]}  Kg3 {[%clk 0:01:05]} 52. Qg7+ {[%clk 0:00:07]}  Kf2 {[%clk 0:01:05]} 53. Qb2+ {[%clk 0:00:08]}  Ke3 {[%clk 0:00:58]} 54. Qc1+ {[%clk 0:00:07]}  Kd3 {[%clk 0:00:58]} 55. Qb1+ {[%clk 0:00:07]}  Kc3 {[%clk 0:00:57]} 56. Qc1+ {[%clk 0:00:07]}  Kb4 {[%clk 0:00:56]} 57. Qb2 {[%clk 0:00:07]}  e5 {[%clk 0:00:52]} 58. a3+ {[%clk 0:00:06]}  Kc5 {[%clk 0:00:53]} 59. Qc3 {[%clk 0:00:05]}  f4 {[%clk 0:00:48]} 60. b4+ {[%clk 0:00:04]}  Kc6 {[%clk 0:00:48]} 61. b5+ {[%clk 0:00:03]}  axb5 {[%clk 0:00:48]} 62. cxb5+ {[%clk 0:00:04]}  Kxb5 {[%clk 0:00:49]} 63. Qb3+ {[%clk 0:00:04]}  Kc5 {[%clk 0:00:49]} 64. Qc3+ {[%clk 0:00:03]}  Kd6 {[%clk 0:00:50]} 65. Qc8 {[%clk 0:00:01]}  Qd5 {[%clk 0:00:49]} 66. Kh2 {[%clk 0:00:02]}  Qf7 {[%clk 0:00:39]} 67. Qd8+ {[%clk 0:00:01]}  Ke6 {[%clk 0:00:39]} 68. Qb6+ {[%clk 0:00:02]}  Kf5 {[%clk 0:00:39]} 69. Qb1+ {[%clk 0:00:02]}  Kg5 {[%clk 0:00:39]} 70. Qb5 {[%clk 0:00:02]}  Kf6 {[%clk 0:00:32]} 71. Qb6+ {[%clk 0:00:02]}  Kf5 {[%clk 0:00:33]} 72. Qb5 {[%clk 0:00:02]}  Qh5+ {[%clk 0:00:28]} 73. Kg1 {[%clk 0:00:01]}  Qf7 {[%clk 0:00:23]} 74. Kh2 {[%clk 0:00:01]}  Qc7 {[%clk 0:00:22]} 0-1


[Site "https://www.chess.com"]

[Event "Titled Tuesday Blitz March 14 Late 2023"]
[White "Guo, Josh"]
[Black "Papasimakopoulos, Alexandros"]
[WhiteFideId "2682427"]
[BlackFideId "4244125"]
[WhiteElo "2330"]
[BlackElo "2359"]
[Result "0-1"]
[Round "01"]
[TimeControl "180+1"]
[Date "2023.03.14"]
[WhiteClock "0:00:01"]
[BlackClock "0:00:20"]

1. e4 {[%clk 0:02:58]}  e6 {[%clk 0:02:51]} 2. d4 {[%clk 0:02:57]}  d5 {[%clk 0:02:46]} 3. e5 {[%clk 0:02:56]}  a6 {[%clk 0:02:36]} 4. Nf3 {[%clk 0:02:50]}  Bd7 {[%clk 0:02:36]} 5. Bg5 {[%clk 0:02:30]}  Be7 {[%clk 0:02:32]} 6. Bxe7 {[%clk 0:02:28]}  Nxe7 {[%clk 0:02:33]} 7. Be2 {[%clk 0:02:28]}  Bb5 {[%clk 0:02:32]} 8. O-O {[%clk 0:02:25]}  Bxe2 {[%clk 0:02:31]} 9. Qxe2 {[%clk 0:02:25]}  O-O {[%clk 0:02:29]} 10. c4 {[%clk 0:02:16]}  Nd7 {[%clk 0:02:19]} 11. b3 {[%clk 0:02:00]}  dxc4 {[%clk 0:02:07]} 12. bxc4 {[%clk 0:01:59]}  c5 {[%clk 0:02:04]} 13. d5 {[%clk 0:01:34]}  exd5 {[%clk 0:02:04]} 14. e6 {[%clk 0:01:35]}  Nf6 {[%clk 0:01:57]} 15. exf7+ {[%clk 0:01:34]}  Kh8 {[%clk 0:01:54]} 16. cxd5 {[%clk 0:01:29]}  Nexd5 {[%clk 0:01:49]} 17. Nbd2 {[%clk 0:01:25]}  Rxf7 {[%clk 0:01:45]} 18. Rad1 {[%clk 0:01:24]}  Qe8 {[%clk 0:01:41]} 19. Qc4 {[%clk 0:01:21]}  Qb5 {[%clk 0:01:38]} 20. Qh4 {[%clk 0:01:18]}  Qb4 {[%clk 0:01:27]} 21. Qh3 {[%clk 0:01:04]}  Re7 {[%clk 0:01:05]} 22. Nb3 {[%clk 0:00:45]}  Rae8 {[%clk 0:00:56]} 23. Qf5 {[%clk 0:00:32]}  Nc3 {[%clk 0:00:46]} 24. Rd6 {[%clk 0:00:24]}  Qb5 {[%clk 0:00:35]} 25. Rxf6 {[%clk 0:00:17]}  Ne2+ {[%clk 0:00:32]} 26. Kh1 {[%clk 0:00:17]}  Ng3+ {[%clk 0:00:31]} 27. hxg3 {[%clk 0:00:17]}  Qxf1+ {[%clk 0:00:31]} 28. Kh2 {[%clk 0:00:18]}  gxf6 {[%clk 0:00:26]} 29. Qxf6+ {[%clk 0:00:18]}  Kg8 {[%clk 0:00:27]} 30. Nxc5 {[%clk 0:00:03]}  Qc4 {[%clk 0:00:20]} 31. Nxb7 {[%clk 0:00:01]} 0-1


[Site "https://www.chess.com"]

[Event "Titled Tuesday Blitz March 14 Late 2023"]
[White "Guzman Moneo, Alberto"]
[Black "Skvortsov, Andrei"]
[WhiteFideId "2209616"]
[BlackFideId "24108600"]
[WhiteElo "2157"]
[BlackElo "2259"]
[Result "0-1"]
[Round "01"]
[TimeControl "180+1"]
[Date "2023.03.14"]
[WhiteClock "0:00:32"]
[BlackClock "0:01:09"]

1. e4 {[%clk 0:02:57]}  c5 {[%clk 0:02:57]} 2. Nc3 {[%clk 0:02:57]}  e6 {[%clk 0:02:55]} 3. Nge2 {[%clk 0:02:56]}  Nc6 {[%clk 0:02:53]} 4. g3 {[%clk 0:02:54]}  d5 {[%clk 0:02:54]} 5. exd5 {[%clk 0:02:53]}  exd5 {[%clk 0:02:55]} 6. Bg2 {[%clk 0:02:54]}  d4 {[%clk 0:02:54]} 7. Nd5 {[%clk 0:02:43]}  Bd6 {[%clk 0:02:50]} 8. O-O {[%clk 0:02:39]}  Nge7 {[%clk 0:02:51]} 9. Nef4 {[%clk 0:02:34]}  O-O {[%clk 0:02:50]} 10. d3 {[%clk 0:02:33]}  Nxd5 {[%clk 0:02:51]} 11. Nxd5 {[%clk 0:02:32]}  Be6 {[%clk 0:02:50]} 12. Nf4 {[%clk 0:02:31]}  Bf5 {[%clk 0:02:49]} 13. Re1 {[%clk 0:02:25]}  Rc8 {[%clk 0:02:49]} 14. Bd2 {[%clk 0:02:25]}  b6 {[%clk 0:02:47]} 15. Qf3 {[%clk 0:02:19]}  Ne7 {[%clk 0:02:46]} 16. g4 {[%clk 0:02:13]}  Bd7 {[%clk 0:02:45]} 17. h3 {[%clk 0:02:07]}  Bc6 {[%clk 0:02:45]} 18. Qe2 {[%clk 0:02:06]}  Bxg2 {[%clk 0:02:42]} 19. Kxg2 {[%clk 0:02:02]}  Bxf4 {[%clk 0:02:38]} 20. Bxf4 {[%clk 0:02:02]}  Ng6 {[%clk 0:02:36]} 21. Bg3 {[%clk 0:02:01]}  Re8 {[%clk 0:02:31]} 22. Qf3 {[%clk 0:01:52]}  Qd7 {[%clk 0:02:31]} 23. Re4 {[%clk 0:01:44]}  Rxe4 {[%clk 0:02:30]} 24. Qxe4 {[%clk 0:01:45]}  Re8 {[%clk 0:02:30]} 25. Qf3 {[%clk 0:01:45]}  Nf8 {[%clk 0:02:30]} 26. Rh1 {[%clk 0:01:39]}  Ne6 {[%clk 0:02:30]} 27. Kh2 {[%clk 0:01:33]}  h6 {[%clk 0:02:23]} 28. Re1 {[%clk 0:01:32]}  Qa4 {[%clk 0:02:15]} 29. Re2 {[%clk 0:01:25]}  Qxa2 {[%clk 0:02:15]} 30. Qc6 {[%clk 0:01:22]}  Rf8 {[%clk 0:02:15]} 31. b3 {[%clk 0:01:21]}  Qb1 {[%clk 0:02:09]} 32. Bd6 {[%clk 0:01:13]}  Qd1 {[%clk 0:01:56]} 33. Re5 {[%clk 0:00:59]}  Qxc2 {[%clk 0:01:34]} 34. Bxf8 {[%clk 0:00:56]}  Qxf2+ {[%clk 0:01:31]} 35. Qg2 {[%clk 0:00:55]}  Qf4+ {[%clk 0:01:24]} 36. Qg3 {[%clk 0:00:55]}  Kxf8 {[%clk 0:01:23]} 37. Qxf4 {[%clk 0:00:53]}  Nxf4 {[%clk 0:01:23]} 38. Kg3 {[%clk 0:00:50]}  Nxd3 {[%clk 0:01:23]} 39. Rd5 {[%clk 0:00:49]}  Ke7 {[%clk 0:01:23]} 40. Rf5 {[%clk 0:00:45]}  g6 {[%clk 0:01:19]} 41. Rf1 {[%clk 0:00:45]}  a5 {[%clk 0:01:18]} 42. Kf3 {[%clk 0:00:41]}  Ke6 {[%clk 0:01:16]} 43. Ke4 {[%clk 0:00:42]}  Nb4 {[%clk 0:01:15]} 44. h4 {[%clk 0:00:39]}  Nd5 {[%clk 0:01:16]} 45. g5 {[%clk 0:00:37]}  hxg5 {[%clk 0:01:16]} 46. hxg5 {[%clk 0:00:37]}  f5+ {[%clk 0:01:16]} 47. gxf6 {[%clk 0:00:36]}  Nxf6+ {[%clk 0:01:16]} 48. Kd3 {[%clk 0:00:37]}  Nd5 {[%clk 0:01:11]} 49. Rg1 {[%clk 0:00:34]}  Kf5 {[%clk 0:01:08]} 50. Kc4 {[%clk 0:00:33]}  Ne3+ {[%clk 0:01:07]} 51. Kb5 {[%clk 0:00:33]}  d3 {[%clk 0:01:06]} 52. Kxb6 {[%clk 0:00:30]}  d2 {[%clk 0:01:06]} 53. Kxc5 {[%clk 0:00:29]}  d1=Q {[%clk 0:01:06]} 54. Rxd1 {[%clk 0:00:29]}  Nxd1 {[%clk 0:01:07]} 55. Kb6 {[%clk 0:00:30]}  g5 {[%clk 0:01:07]} 56. Kxa5 {[%clk 0:00:31]}  g4 {[%clk 0:01:08]} 57. b4 {[%clk 0:00:31]}  Nc3 {[%clk 0:01:08]} 58. b5 {[%clk 0:00:32]}  Nxb5 {[%clk 0:01:08]} 59. Kxb5 {[%clk 0:00:32]}  g3 {[%clk 0:01:09]} 0-1


[Site "https://www.chess.com"]

[Event "Titled Tuesday Blitz March 14 Late 2023"]
[White "Heinemann, Josefine"]
[Black "Nesterov, Arseniy"]
[WhiteFideId "12900460"]
[BlackFideId "24198455"]
[WhiteElo "2342"]
[BlackElo "2491"]
[Result "0-1"]
[Round "01"]
[TimeControl "180+1"]
[Date "2023.03.14"]
[WhiteClock "0:00:01"]
[BlackClock "0:01:39"]

1. e4 {[%clk 0:02:54]}  e5 {[%clk 0:02:59]} 2. Nf3 {[%clk 0:02:52]}  Nc6 {[%clk 0:02:59]} 3. Bb5 {[%clk 0:02:51]}  a6 {[%clk 0:02:59]} 4. Ba4 {[%clk 0:02:51]}  b5 {[%clk 0:02:59]} 5. Bb3 {[%clk 0:02:50]}  Na5 {[%clk 0:03:00]} 6. d4 {[%clk 0:02:45]}  exd4 {[%clk 0:03:00]} 7. Qxd4 {[%clk 0:02:40]}  Bb7 {[%clk 0:02:59]} 8. Qd3 {[%clk 0:02:09]}  d6 {[%clk 0:02:42]} 9. O-O {[%clk 0:02:05]}  Nf6 {[%clk 0:02:34]} 10. Nc3 {[%clk 0:01:58]}  Be7 {[%clk 0:02:30]} 11. Nd5 {[%clk 0:01:51]}  O-O {[%clk 0:02:14]} 12. Re1 {[%clk 0:01:36]}  Nxb3 {[%clk 0:02:10]} 13. axb3 {[%clk 0:01:34]}  Nxd5 {[%clk 0:02:05]} 14. exd5 {[%clk 0:01:34]}  Bf6 {[%clk 0:02:05]} 15. c4 {[%clk 0:01:32]}  h6 {[%clk 0:02:03]} 16. h3 {[%clk 0:01:06]}  Re8 {[%clk 0:02:01]} 17. Rxe8+ {[%clk 0:00:49]}  Qxe8 {[%clk 0:02:02]} 18. Rb1 {[%clk 0:00:36]}  c6 {[%clk 0:01:58]} 19. dxc6 {[%clk 0:00:22]}  Bxc6 {[%clk 0:01:58]} 20. Bf4 {[%clk 0:00:21]}  Be4 {[%clk 0:01:57]} 21. Qd1 {[%clk 0:00:15]}  Bxb1 {[%clk 0:01:58]} 22. Qxb1 {[%clk 0:00:15]}  bxc4 {[%clk 0:01:56]} 23. bxc4 {[%clk 0:00:14]}  Qe2 {[%clk 0:01:50]} 24. b3 {[%clk 0:00:12]}  Rb8 {[%clk 0:01:50]} 25. Bxd6 {[%clk 0:00:10]}  Rd8 {[%clk 0:01:48]} 26. c5 {[%clk 0:00:09]}  Be7 {[%clk 0:01:47]} 27. Qf5 {[%clk 0:00:07]}  Bxd6 {[%clk 0:01:44]} 28. cxd6 {[%clk 0:00:07]}  Qd1+ {[%clk 0:01:44]} 29. Kh2 {[%clk 0:00:07]}  Qxd6+ {[%clk 0:01:45]} 30. g3 {[%clk 0:00:06]}  Qd5 {[%clk 0:01:45]} 31. Qf4 {[%clk 0:00:05]}  Qxb3 {[%clk 0:01:45]} 32. Ne5 {[%clk 0:00:04]}  Qe6 {[%clk 0:01:44]} 33. Ng4 {[%clk 0:00:02]}  a5 {[%clk 0:01:42]} 34. Qc1 {[%clk 0:00:02]}  a4 {[%clk 0:01:41]} 35. Qc7 {[%clk 0:00:02]}  Ra8 {[%clk 0:01:40]} 36. Qb7 {[%clk 0:00:02]}  Qa6 {[%clk 0:01:40]} 37. Qe7 {[%clk 0:00:01]}  a3 {[%clk 0:01:39]} 38. Ne5 {[%clk 0:00:01]}  Qe6 {[%clk 0:01:39]} 0-1


[Site "https://www.chess.com"]